fUST/lending_fUST_20250524
["ID","MTS","AMOUNT","RATE_DAILY","PERIOD"]
[362192791,1748079044924,-441.06,0.00023013,3]
[362192792,1748079044933,-430.0,0.00023013,3]
[362192793,1748079044943,-430.0,0.00023013,3]
[362192794,1748079044952,-430.0,0.00023013,3]
[362192795,1748079044961,-430.0,0.00023013,3]
[362192796,1748079044970,-430.0,0.00023013,3]
[362192797,1748079044979,-430.0,0.00023013,3]
[362192798,1748079044989,-1074.75,0.00023013,3]
[362192799,1748079044997,-1353.12,0.00023013,3]
[362192800,1748079045006,-430.0,0.00023013,3]
[362192801,1748079045015,-204.93220166,0.00023127,8]
[362192802,1748079045024,-404.0,0.00023138,2]
[362192803,1748079045034,-960.0,0.00023138,2]
[362192804,1748079045043,-2206.0,0.00023138,2]
[362192805,1748079045052,-721.174,0.00023138,2]
[362192806,1748079045062,-2109.16679853,0.00023187,2]
[362192807,1748079045071,-204.93220166,0.00023264,8]
[362192808,1748079045080,-500.0,0.00023286,3]
[362192809,1748079045089,-430.0,0.00023287,3]
[362192810,1748079045098,-430.0,0.00023287,3]
[362192811,1748079045107,-430.0,0.00023287,3]
[362192812,1748079045116,-430.0,0.00023287,3]
[362192813,1748079045199,-430.0,0.00023287,3]
[362192814,1748079045208,-430.0,0.00023287,3]
[362192815,1748079045218,-430.0,0.00023287,3]
[362192816,1748079045227,-430.0,0.00023287,3]
[362192817,1748079045236,-430.0,0.00023287,3]
[362192818,1748079045246,-430.0,0.00023287,3]
[362192819,1748079045255,-430.0,0.00023287,3]
[362192820,1748079045264,-430.0,0.00023287,3]
[362192821,1748079045274,-430.0,0.00023287,3]
[362192822,1748079045283,-430.0,0.00023287,3]
[362192823,1748079045292,-737.52,0.00023287,3]
[362192824,1748079045301,-430.0,0.00023287,3]
[362192825,1748079045311,-430.0,0.00023287,3]
[362192826,1748079045320,-430.0,0.00023287,3]
[362192827,1748079045329,-430.0,0.00023287,3]
[362192828,1748079045338,-430.0,0.00023287,3]
[362192829,1748079045348,-430.0,0.00023287,3]
[362192830,1748079045357,-430.0,0.00023287,3]
[362192831,1748079045366,-430.0,0.00023287,3]
[362192832,1748079045375,-430.0,0.00023287,3]
[362192833,1748079045385,-430.0,0.00023287,3]
[362192834,1748079045394,-466.93770404,0.00023287,3]
[362192836,1748079045402,-430.0,0.00023287,3]
[362192837,1748079045412,-430.0,0.00023287,3]
[362192838,1748079045421,-430.0,0.00023287,3]
[362192839,1748079045430,-1470.77,0.00023287,3]
[362192840,1748079045440,-430.0,0.00023287,3]
[362192841,1748079045449,-430.0,0.00023287,3]
[362192842,1748079045459,-430.0,0.00023287,3]
[362192843,1748079045469,-926.41,0.00023287,3]
[362192844,1748079045478,-430.0,0.00023287,3]
[362192845,1748079045488,-430.0,0.00023287,3]
[362192846,1748079045497,-151.85,0.00023287,3]
[362192847,1748079045506,-430.0,0.00023287,3]
[362192848,1748079045515,-430.0,0.00023287,3]
[362192849,1748079045525,-430.0,0.00023287,3]
[362192850,1748079045535,-430.0,0.00023287,3]
[362192851,1748079045544,-430.0,0.00023287,3]
[362192852,1748079045553,-430.0,0.00023287,3]
[362192853,1748079045563,-430.0,0.00023287,3]
[362192854,1748079045572,-430.0,0.00023287,3]
[362192855,1748079045582,-430.0,0.00023287,3]
[362192856,1748079045591,-430.0,0.00023287,3]
[362192857,1748079045601,-430.0,0.00023287,3]
[362192858,1748079045611,-430.0,0.00023287,3]
[362192859,1748079045620,-430.0,0.00023287,3]
[362192860,1748079045630,-430.0,0.00023287,3]
[362192861,1748079045640,-430.0,0.00023287,3]
[362192862,1748079045650,-430.0,0.00023287,3]
[362192863,1748079045660,-430.0,0.00023287,3]
[362192864,1748079045670,-430.0,0.00023287,3]
[362192865,1748079045679,-430.0,0.00023287,3]
[362192866,1748079045688,-430.0,0.00023287,3]
[362192867,1748079045698,-430.0,0.00023287,3]
[362192868,1748079045708,-430.0,0.00023287,3]
[362192869,1748079045718,-430.0,0.00023287,3]
[362192870,1748079045727,-430.0,0.00023287,3]
[362192871,1748079045737,-430.0,0.00023287,3]
[362192872,1748079045746,-430.0,0.00023287,3]
[362192873,1748079045755,-430.0,0.00023287,3]
[362192874,1748079045764,-473.91,0.00023287,3]
[362192875,1748079045774,-150.0,0.00023287,3]
[362192876,1748079045787,-691.57,0.00023287,3]
[362192877,1748079045797,-430.0,0.00023287,3]
[362192878,1748079045806,-430.0,0.00023287,3]
[362192879,1748079045817,-441.06,0.00023287,3]
[362192880,1748079045826,-430.0,0.00023287,3]
[362192881,1748079045835,-430.0,0.00023287,3]
[362192882,1748079045845,-430.0,0.00023287,3]
[362192883,1748079045857,-471.38139335,0.00023287,3]
[362192884,1748079045869,-430.0,0.00023287,3]
[362192885,1748079045880,-1074.75,0.00023287,3]
[362192886,1748079045889,-1353.12,0.00023287,3]
[362192887,1748079045898,-206.02551417,0.00023287,3]
[362192888,1748079045907,-204.93220166,0.000234,9]
[362192889,1748079045918,-1017.48499131,0.00023438,2]
[362192890,1748079045927,-1500.0,0.00023481,2]
[362192891,1748079045938,-221.54887685,0.00023481,2]
[362192892,1748079045948,-204.93220166,0.00023536,9]
[362192893,1748079045957,-430.0,0.00023561,3]
[362192894,1748079045966,-430.0,0.00023561,3]
[362192895,1748079045976,-430.0,0.00023561,3]
[362192896,1748079045986,-430.0,0.00023561,3]
[362192897,1748079045996,-430.0,0.00023561,3]
[362192898,1748079046005,-430.0,0.00023561,3]
[362192899,1748079046014,-430.0,0.00023561,3]
[362192900,1748079046023,-430.0,0.00023561,3]
[362192901,1748079046034,-330.75459125,0.00023561,3]
[362192902,1748079046043,-430.0,0.00023561,3]
[362192904,1748079046052,-430.0,0.00023561,3]
[362192905,1748079046061,-430.0,0.00023561,3]
[362192906,1748079046070,-430.0,0.00023561,3]
[362192907,1748079046079,-737.52,0.00023561,3]
[362192908,1748079046088,-430.0,0.00023561,3]
[362192909,1748079046098,-430.0,0.00023561,3]
[362192910,1748079046107,-430.0,0.00023561,3]
[362192911,1748079046117,-430.0,0.00023561,3]
[362192912,1748079046126,-430.0,0.00023561,3]
[362192913,1748079046136,-430.0,0.00023561,3]
[362192914,1748079046145,-430.0,0.00023561,3]
[362192915,1748079046155,-430.0,0.00023561,3]
[362192916,1748079046164,-430.0,0.00023561,3]
[362192917,1748079046172,-430.0,0.00023561,3]
[362192918,1748079046182,-430.0,0.00023561,3]
[362192919,1748079046191,-430.0,0.00023561,3]
[362192920,1748079046200,-430.0,0.00023561,3]
[362192921,1748079046210,-1470.77,0.00023561,3]
[362192922,1748079046219,-430.0,0.00023561,3]
[362192923,1748079046228,-430.0,0.00023561,3]
[362192924,1748079046238,-926.41,0.00023561,3]
[362192925,1748079046247,-430.0,0.00023561,3]
[362192926,1748079046257,-430.0,0.00023561,3]
[362192927,1748079046266,-430.0,0.00023561,3]
[362192928,1748079046276,-430.0,0.00023561,3]
[362192929,1748079046285,-430.0,0.00023561,3]
[362192930,1748079046294,-430.0,0.00023561,3]
[362192931,1748079046303,-430.0,0.00023561,3]
[362192932,1748079046313,-430.0,0.00023561,3]
[362192933,1748079046322,-430.0,0.00023561,3]
[362192934,1748079046331,-430.0,0.00023561,3]
[362192935,1748079046340,-430.0,0.00023561,3]
[362192936,1748079046350,-430.0,0.00023561,3]
[362192937,1748079046359,-430.0,0.00023561,3]
[362192938,1748079046368,-430.0,0.00023561,3]
[362192939,1748079046378,-430.0,0.00023561,3]
[362192940,1748079046387,-430.0,0.00023561,3]
[362192941,1748079046396,-430.0,0.00023561,3]
[362192942,1748079046405,-430.0,0.00023561,3]
[362192943,1748079046414,-430.0,0.00023561,3]
[362192944,1748079046424,-430.0,0.00023561,3]
[362192945,1748079046434,-430.0,0.00023561,3]
[362192946,1748079046444,-430.0,0.00023561,3]
[362192947,1748079046454,-430.0,0.00023561,3]
[362192948,1748079046463,-430.0,0.00023561,3]
[362192949,1748079046472,-430.0,0.00023561,3]
[362192950,1748079046482,-430.0,0.00023561,3]
[362192951,1748079046494,-430.0,0.00023561,3]
[362192952,1748079046503,-473.91,0.00023561,3]
[362192953,1748079046513,-150.0,0.00023561,3]
[362192954,1748079046522,-691.57,0.00023561,3]
[362192955,1748079046531,-430.0,0.00023561,3]
[362192956,1748079046540,-430.0,0.00023561,3]
[362192957,1748079046549,-441.06,0.00023561,3]
[362192958,1748079046559,-430.0,0.00023561,3]
[362192959,1748079046568,-430.0,0.00023561,3]
[362192960,1748079046577,-285.9,0.00023561,3]
[362192961,1748079046587,-1074.75,0.00023561,3]
[362192962,1748079046596,-1353.12,0.00023561,3]
[362192963,1748079046605,-215.0738,0.00023566,2]
[362192964,1748079046614,-25077.55883798,0.0002366,2]
[362192965,1748079046624,-204.93220166,0.00023673,9]
[362192966,1748079046633,-204.93220166,0.00023809,9]
[362192967,1748079046642,-420.0,0.00023814,2]
[362192968,1748079046651,-420.0,0.00023815,2]
[362192969,1748079046660,-1680.0,0.00023823,2]
[362192970,1748079046669,-500.0,0.00023834,3]
[362192971,1748079046678,-430.0,0.00023835,3]
[362192972,1748079046688,-430.0,0.00023835,3]
[362192973,1748079046697,-737.52,0.00023835,3]
[362192974,1748079046708,-430.0,0.00023835,3]
[362192975,1748079046717,-269.36,0.00023835,3]
[362192976,1748079046726,-430.0,0.00023835,3]
[362192977,1748079046736,-430.0,0.00023835,3]
[362192978,1748079046745,-1470.77,0.00023835,3]
[362192979,1748079046754,-505.68,0.00023835,3]
[362192980,1748079046764,-430.0,0.00023835,3]
[362192981,1748079046839,-926.41,0.00023835,3]
[362192982,1748079046857,-430.0,0.00023835,3]
[362192983,1748079046867,-430.0,0.00023835,3]
[362192984,1748079046876,-430.0,0.00023835,3]
[362192985,1748079046885,-430.0,0.00023835,3]
[362192986,1748079046894,-430.0,0.00023835,3]
[362192987,1748079046904,-430.0,0.00023835,3]
[362192988,1748079046913,-430.0,0.00023835,3]
[362192989,1748079046923,-430.0,0.00023835,3]
[362192990,1748079046932,-473.91,0.00023835,3]
[362192991,1748079046941,-150.0,0.00023835,3]
[362192992,1748079046951,-691.57,0.00023835,3]
[362192993,1748079046961,-430.0,0.00023835,3]
[362192994,1748079046970,-441.06,0.00023835,3]
[362192995,1748079046979,-1074.75,0.00023835,3]
[362192996,1748079046988,-1353.12,0.00023835,3]
[362192997,1748079046997,-2109.16679853,0.00023871,2]
[362192998,1748079047008,-204.93220166,0.00023945,10]
[362192999,1748079047017,-4329.99864653,0.00023998,2]
[362193000,1748079047026,-2000.0,0.00024028,2]
[362193001,1748079047036,-204.93220166,0.00024082,10]
[362193002,1748079047045,-430.0,0.00024109,3]
[362193003,1748079047054,-430.0,0.00024109,3]
[362193004,1748079047064,-737.52,0.00024109,3]
[362193005,1748079047073,-430.0,0.00024109,3]
[362193006,1748079047083,-250.19,0.00024109,3]
[362193007,1748079047093,-430.0,0.00024109,3]
[362193008,1748079047103,-1470.77,0.00024109,3]
[362193009,1748079047113,-926.41,0.00024109,3]
[362193010,1748079047123,-430.0,0.00024109,3]
[362193011,1748079047132,-430.0,0.00024109,3]
[362193012,1748079047142,-430.0,0.00024109,3]
[362193013,1748079047151,-430.0,0.00024109,3]
[362193014,1748079047159,-430.0,0.00024109,3]
[362193015,1748079047169,-430.0,0.00024109,3]
[362193016,1748079047178,-430.0,0.00024109,3]
[362193017,1748079047187,-430.0,0.00024109,3]
[362193018,1748079047196,-473.91,0.00024109,3]
[362193019,1748079047206,-150.0,0.00024109,3]
[362193020,1748079047215,-691.57,0.00024109,3]
[362193021,1748079047224,-430.0,0.00024109,3]
[362193022,1748079047234,-441.06,0.00024109,3]
[362193023,1748079047244,-1074.75,0.00024109,3]
[362193024,1748079047253,-1353.12,0.00024109,3]
[362193025,1748079047263,-524.15487064,0.00024183,2]
[362193026,1748079047272,-204.93220166,0.00024218,10]
[362193027,1748079047281,-204.93220166,0.00024355,11]
[362193028,1748079047290,-430.0,0.00024383,3]
[362193029,1748079047299,-430.0,0.00024383,3]
[362193030,1748079047309,-737.52,0.00024383,3]
[362193031,1748079047318,-430.0,0.00024383,3]
[362193032,1748079047328,-430.0,0.00024383,3]
[362193033,1748079047338,-1470.77,0.00024383,3]
[362193034,1748079047347,-926.41,0.00024383,3]
[362193035,1748079047358,-160.59,0.00024383,3]
[362193036,1748079047367,-430.0,0.00024383,3]
[362193037,1748079047376,-430.0,0.00024383,3]
[362193038,1748079047385,-440.25,0.00024383,3]
[362193039,1748079047395,-430.0,0.00024383,3]
[362193040,1748079047404,-536.78,0.00024383,3]
[362193041,1748079047413,-430.0,0.00024383,3]
[362193042,1748079047423,-430.0,0.00024383,3]
[362193043,1748079047432,-473.91,0.00024383,3]
[362193044,1748079047442,-150.0,0.00024383,3]
[362193045,1748079047451,-691.57,0.00024383,3]
[362193046,1748079047461,-430.0,0.00024383,3]
[362193047,1748079047470,-441.06,0.00024383,3]
[362193048,1748079047479,-1074.75,0.00024383,3]
[362193049,1748079047490,-1353.12,0.00024383,3]
[362193050,1748079047499,-1166.374007,0.00024489,2]
[362193051,1748079047508,-204.93220166,0.00024491,11]
[362193052,1748079047518,-500.0,0.000245,2]
[362193053,1748079047527,-524.15487064,0.00024515,2]
[362193054,1748079047537,-2109.16679853,0.00024556,2]
[362193055,1748079047546,-204.93220166,0.00024627,11]
[362193056,1748079047556,-26907.82375122,0.00024651,2]
[362193057,1748079047565,-430.0,0.00024657,3]
[362193058,1748079047575,-430.0,0.00024657,3]
[362193059,1748079047584,-737.52,0.00024657,3]
[362193060,1748079047594,-256.37,0.00024657,3]
[362193061,1748079047604,-430.0,0.00024657,3]
[362193062,1748079047614,-1470.77,0.00024657,3]
[362193063,1748079047623,-926.41,0.00024657,3]
[362193064,1748079047632,-257.86527384,0.00024657,3]
[362193065,1748079047641,-430.0,0.00024657,3]
[362193066,1748079047650,-430.0,0.00024657,3]
[362193067,1748079047660,-430.0,0.00024657,3]
[362193068,1748079047670,-430.0,0.00024657,3]
[362193069,1748079047679,-473.91,0.00024657,3]
[362193070,1748079047688,-256.34727452,0.00024657,3]
[362193071,1748079047698,-691.57,0.00024657,3]
[362193072,1748079047708,-430.0,0.00024657,3]
[362193073,1748079047718,-441.06,0.00024657,3]
[362193074,1748079047728,-1074.75,0.00024657,3]
[362193075,1748079047738,-1353.12,0.00024657,3]
[362193076,1748079047747,-4018.83,0.00024657,4]
[362193077,1748079047757,-150.0,0.00024658,2]
[362193078,1748079047767,-637.00092146,0.00024687,7]
[362193079,1748079047777,-10000.0,0.000247,14]
[362193080,1748079047788,-1000.0,0.00024712,2]
[362193081,1748079047798,-524.15487064,0.00024723,2]
[362193082,1748079047807,-800.0,0.00024738,2]
[362193083,1748079047817,-204.93220166,0.00024764,11]
[362193084,1748079047828,-800.0,0.00024773,2]
[362193085,1748079047838,-800.0,0.00024777,2]
[362193086,1748079047847,-200.0,0.0002481,11]
[362193087,1748079047860,-414.43355336,0.00024812,2]
[362193088,1748079047870,-800.0,0.0002483,2]
[362193089,1748079047880,-1000.0,0.00024849,2]
[362193090,1748079047889,-1000.0,0.00024873,2]
[362193091,1748079047899,-800.0,0.00024883,2]
[362193092,1748079047908,-800.0,0.00024896,2]
[362193093,1748079047918,-2354.812,0.00024898,2]
[362193094,1748079047927,-500.0,0.00024899,3]
[362193095,1748079047938,-300256.27493362,0.000249,2]
[362193096,1748079048420,-470.0,0.00021917,3]
[362193097,1748079048430,-129522.05777138,0.000249,2]
[362193098,1748079048473,-430.0,0.00021917,3]
[362193099,1748079048483,-87.45346569,0.00022191,3]
[362193100,1748079048505,-255.4406849,0.00022,10]
[362193101,1748079048516,-342.54653431,0.00022191,3]
[362193102,1748079048526,-430.0,0.00022465,3]
[362193103,1748079048535,-430.0,0.00022739,3]
[362193104,1748079048545,-430.0,0.00023013,3]
[362193105,1748079048555,-95636.42069031,0.000249,2]
[362193106,1748079048566,-1281.754,0.000249,2]
[362193107,1748079048578,-9531.34878072,0.000249,2]
[362193108,1748079048683,-430.0,0.00021917,3]
[362193109,1748079048693,-450.0,0.00021917,3]
[362193110,1748079048704,-470.0,0.00021917,3]
[362193111,1748079048714,-430.0,0.00021917,3]
[362193112,1748079048723,-127.18106817,0.00022191,3]
[362193113,1748079048735,-302.81893183,0.00022191,3]
[362193114,1748079048746,-430.0,0.00022465,3]
[362193115,1748079048755,-430.0,0.00022739,3]
[362193116,1748079048765,-10578.97407693,0.000249,2]
[362193118,1748079188295,2568.83,0.00024657,120]
[362193165,1748080232128,-160.307689,0.00013699,2]
[362193166,1748080232137,-756.1637342,0.00020913,2]
[362193167,1748080232147,-191.293913,0.00021153,2]
[362193168,1748080232156,-5401.1382986,0.00021504,2]
[362193169,1748080232166,-234.36772332,0.00021817,2]
[362193170,1748080232180,-204.93220166,0.000219,6]
[362193171,1748080232189,-300.0,0.00021915,2]
[362193172,1748080232200,-282.73178452,0.00021916,2]
[362193173,1748080232209,-233.94907006,0.00021916,2]
[362193174,1748080232222,-492.84599306,0.00021916,2]
[362193175,1748080232348,-500.0,0.00021916,2]
[362193176,1748080232357,-180.65575596,0.00021916,2]
[362193177,1748080232367,-500.0,0.00021916,2]
[362193178,1748080232376,-487.58305725,0.00021916,2]
[362193179,1748080232386,-500.0,0.00021916,2]
[362193180,1748080232395,-500.0,0.00021916,2]
[362193181,1748080232405,-176.5955746,0.00021916,2]
[362193182,1748080232415,-500.0,0.00021916,2]
[362193183,1748080232424,-500.0,0.00021916,2]
[362193184,1748080232434,-347.50923949,0.00021916,2]
[362193185,1748080232443,-575.87684312,0.00021917,3]
[362193186,1748080232452,-430.0,0.00021917,3]
[362193187,1748080232462,-452.21,0.00021917,3]
[362193188,1748080232472,-430.0,0.00021917,3]
[362193189,1748080232481,-293.02149161,0.00021917,3]
[362193190,1748080232493,-136.97850839,0.00021917,3]
[362193191,1748080232502,-430.0,0.00021917,3]
[362193192,1748080232511,-122.57605375,0.00021917,3]
[362193206,1748080240377,-327.42394625,0.00021917,3]
[362193208,1748080240387,-451.21767494,0.00021917,3]
[362193210,1748080240397,-350.0,0.00021917,3]
[362193212,1748080240406,-247.64875494,0.00021917,3]
[362193327,1748080245453,-215.80857064,0.00021917,3]
[362193328,1748080245462,-377.04803535,0.00021917,3]
[362193367,1748080246103,-52.95196465,0.00021917,3]
[362193368,1748080246113,-430.0,0.00021917,3]
[362193369,1748080246122,-430.0,0.00021917,3]
[362193370,1748080246132,-400.0,0.00021917,3]
[362193372,1748080246142,-430.0,0.00021917,3]
[362193373,1748080246152,-400.0,0.00021917,3]
[362193374,1748080246161,-500.0,0.00021917,3]
[362193375,1748080246171,-430.0,0.00021917,3]
[362193376,1748080246188,-430.0,0.00021917,3]
[362193377,1748080246199,-430.0,0.00021917,3]
[362193378,1748080246208,-430.0,0.00021917,3]
[362193379,1748080246219,-430.0,0.00021917,3]
[362193380,1748080246227,-430.0,0.00021917,3]
[362193381,1748080246238,-430.0,0.00021917,3]
[362193382,1748080246247,-500.0,0.00021917,3]
[362193383,1748080246257,-500.0,0.00021917,3]
[362193384,1748080246266,-500.0,0.00021917,3]
[362193385,1748080246276,-500.0,0.00021917,3]
[362193386,1748080246285,-500.0,0.00021917,3]
[362193387,1748080246295,-500.0,0.00021917,3]
[362193388,1748080246305,-500.0,0.00021917,3]
[362193389,1748080246315,-500.0,0.00021917,3]
[362193390,1748080246325,-336.26624562,0.00021917,3]
[362193391,1748080246334,-430.0,0.00021917,3]
[362193392,1748080246343,-183.31829345,0.00021917,3]
[362193393,1748080246353,-430.0,0.00021917,3]
[362193394,1748080246362,-430.0,0.00021917,3]
[362193395,1748080246372,-430.0,0.00021917,3]
[362193396,1748080246381,-450.0,0.00021917,3]
[362193397,1748080246391,-407.21173222,0.00021917,3]
[362193398,1748080246400,-370.0,0.00021917,3]
[362193399,1748080246410,-400.88195381,0.00021917,3]
[362193400,1748080246419,-450.0,0.00021917,3]
[362193401,1748080246429,-430.0,0.00021917,3]
[362193402,1748080246438,-430.0,0.00021917,3]
[362193403,1748080246447,-450.0,0.00021917,3]
[362193404,1748080246456,-430.0,0.00021917,3]
[362193405,1748080246466,-430.0,0.00021917,3]
[362193406,1748080246475,-430.0,0.00021917,3]
[362193407,1748080246489,-430.0,0.00021917,3]
[362193408,1748080246501,-430.0,0.00021917,3]
[362193409,1748080246514,-430.0,0.00021917,3]
[362193410,1748080246526,-256.48304668,0.00021917,3]
[362193416,1748080562150,4255.0,0.00024658,120]
[362193419,1748080644987,150.0,0.000246,120]
[362193421,1748080700273,13365.667294,0.00024657,120]
[362193423,1748080916404,-160.306519,0.00013699,2]
[362193424,1748080916428,-114.99234829,0.00013919,2]
[362193425,1748080918685,-162.34414434,0.00013919,2]
[362193426,1748080920813,-155.0,0.00013919,2]
[362193427,1748080922831,-67.66350737,0.00013919,2]
[362193432,1748081340547,-154.44623644,0.00013699,2]
[362193433,1748081342093,-5.86028256,0.00013699,2]
[362193464,1748081438486,-500.0,0.00014652,2]
[362193465,1748081438496,-2165.41015758,0.00014888,3]
[362193466,1748081438506,-120456.23670037,0.00014888,2]
[362193467,1748081438518,-500.0,0.00015423,2]
[362193468,1748081438527,-500.0,0.00016234,2]
[362193469,1748081438536,-500.0,0.00017089,2]
[362193470,1748081438547,-500.0,0.00017988,2]
[362193471,1748081438556,-500.0,0.00018935,2]
[362193472,1748081438566,-436.2661463,0.00019063,2]
[362193473,1748081438577,-500.0,0.00019882,2]
[362193474,1748081438586,-500.0,0.00020876,2]
[362193475,1748081438598,-203.46009391,0.000219,6]
[362193476,1748081438608,-212.51988043,0.00021917,3]
[362193477,1748081438617,-430.0,0.00021917,3]
[362193478,1748081438628,-430.0,0.00021917,3]
[362193479,1748081438638,-430.0,0.00021917,3]
[362193480,1748081438647,-443.92331763,0.00021917,3]
[362193481,1748081438657,-470.0,0.00021917,3]
[362193482,1748081438667,-430.0,0.00021917,3]
[362193483,1748081438677,-430.0,0.00021917,3]
[362193484,1748081438687,-465.28506817,0.00021917,3]
[362193485,1748081438697,-470.0,0.00021917,3]
[362193486,1748081438707,-365.0,0.00021917,3]
[362193487,1748081438717,-554.08782209,0.00021917,3]
[362193488,1748081438726,-470.0,0.00021917,3]
[362193489,1748081438740,-370.0,0.00021917,3]
[362193490,1748081438750,-430.0,0.00021917,3]
[362193491,1748081438760,-430.0,0.00021917,3]
[362193492,1748081438770,-500.0,0.00021917,3]
[362193493,1748081438780,-470.0,0.00021917,3]
[362193494,1748081438790,-430.0,0.00021917,3]
[362193495,1748081438799,-470.0,0.00021917,3]
[362193496,1748081438809,-430.0,0.00021917,3]
[362193497,1748081438821,-29.13232512,0.00021917,3]
[362193505,1748081675738,-300.0,0.00014799,2]
[362193506,1748081675761,-13075.0,0.000148,2]
[362193507,1748081824702,1001.73392814,0.00024658,120]
[362193509,1748081916251,1750.0,0.00024657,120]
[362193639,1748082366490,-160.306519,0.00013699,2]
[362193676,1748082632556,-73.0,0.000148,2]
[362193677,1748082632566,-270.94810156,0.000148,2]
[362193678,1748082632576,-287.010876,0.00019935,2]
[362193679,1748082632585,-202.354314,0.00020198,2]
[362193680,1748082632595,-202.0,0.00020535,2]
[362193681,1748082632604,-300.0,0.00020535,2]
[362193682,1748082632614,-300.0,0.00020535,2]
[362193683,1748082632623,-1200.0,0.00020535,2]
[362193684,1748082632632,-24900.0,0.00020536,2]
[362193685,1748082632642,-500.0,0.00021068,2]
[362193686,1748082632651,-500.0,0.00021068,2]
[362193687,1748082632660,-500.0,0.00021068,2]
[362193688,1748082632669,-500.0,0.00021068,2]
[362193689,1748082632679,-500.0,0.00021068,2]
[362193690,1748082632688,-500.0,0.00021068,2]
[362193691,1748082632697,-500.0,0.00021068,2]
[362193692,1748082632707,-500.0,0.00021068,2]
[362193693,1748082632716,-500.0,0.00021068,2]
[362193694,1748082632725,-500.0,0.00021068,2]
[362193695,1748082632735,-182.2969605,0.00021068,2]
[362193696,1748082632744,-500.0,0.00021068,2]
[362193697,1748082632754,-500.0,0.00021068,2]
[362193698,1748082632763,-500.0,0.00021068,2]
[362193699,1748082632772,-500.0,0.00021068,2]
[362193700,1748082632781,-500.0,0.00021068,2]
[362193701,1748082632791,-500.0,0.00021068,2]
[362193702,1748082632799,-500.0,0.00021068,2]
[362193703,1748082632809,-500.0,0.00021068,2]
[362193704,1748082632818,-500.0,0.00021068,2]
[362193705,1748082632827,-500.0,0.00021068,2]
[362193706,1748082632838,-548.98941586,0.00021068,2]
[362193707,1748082632847,-300.0,0.00021068,2]
[362193708,1748082632856,-9513.4729023,0.00021069,2]
[362193709,1748082632865,-13564.83574992,0.00021069,2]
[362193710,1748082632875,-156.24514888,0.00021636,2]
[362193711,1748082632884,-152.0,0.00021687,2]
[362193712,1748082632893,-156.24514887,0.00021768,2]
[362193713,1748082632903,-156.24514887,0.000219,2]
[362193714,1748082632912,-203.46009391,0.000219,6]
[362193715,1748082632922,-154.513,0.00021916,2]
[362193716,1748082632935,-1082.70507879,0.00021917,3]
[362193717,1748082632943,-338.69550036,0.00021917,3]
[362193718,1748082632952,-430.0,0.00021917,3]
[362193719,1748082632963,-320.0,0.00021917,3]
[362193720,1748082632973,-490.0,0.00021917,3]
[362193721,1748082632982,-430.0,0.00021917,3]
[362193722,1748082632992,-430.0,0.00021917,3]
[362193723,1748082633001,-430.0,0.00021917,3]
[362193724,1748082633011,-430.0,0.00021917,3]